bitfinex-derivatives/quotes_ETHF0:USTF0_20251117
["timestamp","ask_amount","ask_price","bid_price","bid_amount"]
[1763352407050,3.2078,3174.2,3173.7,0.334]
[1763352407246,0.2869,3173.8,3173.7,0.334]
[1763352407446,0.2869,3174.1,3174.0,0.54]
[1763352408448,3.2078,3174.2,3174.1,0.3541]
[1763352408851,3.5432,3174.2,3174.1,0.3541]
[1763352409558,0.3354,3174.1,3174.0,0.206]
[1763352409755,0.3354,3174.1,3174.0,0.5601]
[1763352409955,3.5432,3174.2,3174.1,0.3541]
[1763352410652,3.5432,3174.2,3174.0,0.206]
[1763352410653,0.3354,3174.1,3174.0,0.206]
[1763352412555,0.3354,3174.1,3173.6,4.90473022]
[1763352414455,0.3354,3174.1,3173.6,3.2078]
[1763352414951,0.3354,3173.7,3173.6,3.5619]
[1763352416360,0.81617482,3174.1,3173.6,3.5619]
[1763352416661,3.2078,3174.2,3174.1,0.3541]
[1763352416954,3.5432,3174.6,3174.5,0.5599]
[1763352417354,1.15157482,3174.6,3174.5,0.2058]
[1763352417555,1.15157482,3174.6,3174.0,3.4136]
[1763352417865,1.15157482,3174.6,3174.5,0.5599]
[1763352418157,1.15157482,3174.6,3174.0,3.4136]
[1763352418362,0.3354,3174.6,3174.5,0.2058]
[1763352419163,0.00344006,3174.7,3174.6,0.3541]
[1763352419659,0.00344006,3174.7,3174.6,1.48472408]
[1763352419856,0.00344006,3174.7,3174.6,0.3541]
[1763352420366,3.2078,3175.8,3175.5,0.2058]
[1763352420660,0.3369,3174.8,3174.7,1.13005986]
[1763352420965,0.3369,3174.6,3174.0,0.2058]
[1763352421464,0.34438265,3174.6,3174.5,0.2058]
[1763352421954,0.00748265,3174.6,3174.5,0.5599]
[1763352423862,0.34438265,3174.6,3174.0,1.90890271]
[1763352424165,0.34438265,3174.6,3174.0,0.21381291]
[1763352424369,3.2078,3174.1,3174.0,0.56791291]
[1763352424569,2.82944595,3174.1,3174.0,0.56791291]
[1763352424865,4.74941647,3174.1,3173.1,1.85779679]
[1763352425058,4.74941647,3174.1,3172.0,3.04285445]
[1763352425059,4.34995639,3173.2,3172.0,3.04285445]
[1763352425366,1.14215639,3172.3,3171.5,0.2058]
[1763352425559,1.14215639,3172.3,3172.0,0.2058]
[1763352425864,1.14524786,3172.3,3172.0,0.20883616]
[1763352426060,0.00309147,3172.3,3172.2,0.3541]
[1763352426855,0.00309147,3172.3,3172.2,3.5619]
[1763352427253,0.00309147,3172.3,3172.2,0.3541]
[1763352428065,0.00309147,3172.3,3172.0,0.20883616]
[1763352429669,3.2078,3172.1,3172.0,0.56293616]
[1763352432668,3.2078,3172.1,3172.0,0.20883616]
[1763352433267,3.2078,3172.1,3172.0,0.56293616]
[1763352433570,3.2078,3172.1,3172.0,0.20883616]
[1763352433971,3.2078,3172.1,3172.0,0.56293616]
[1763352436577,3.2078,3172.1,3171.5,0.2058]
[1763352436578,3.71891,3172.1,3171.5,0.2058]
[1763352436878,3.2078,3171.6,3171.5,0.2058]
[1763352437576,3.2078,3171.6,3171.5,0.00339872]
[1763352437776,3.2078,3171.6,3171.5,0.23879872]
[1763352438074,3.2078,3171.6,3171.5,0.65779872]
[1763352438776,3.2078,3172.1,3172.0,0.6712]
[1763352439477,0.00309147,3172.3,3172.2,0.4201]
[1763352443287,1.69194933,3173.8,3173.5,0.2511]
[1763352443288,3.2078,3173.8,3173.5,0.2511]
[1763352443576,3.2078,3173.8,3173.7,0.4201]
[1763352443981,10.74631368,3174.8,3174.1,0.4201]
[1763352443982,3.2078,3174.2,3174.1,0.4201]
[1763352444183,3.21001989,3174.2,3174.1,0.42350546]
[1763352444479,3.21001989,3174.2,3174.1,0.00340546]
[1763352445082,3.94241121,3174.2,3173.5,0.2511]
[1763352445286,4.34995639,3173.6,3172.8,3.2078]
[1763352446077,4.34995639,3173.6,3173.0,0.25479543]
[1763352446377,4.34995639,3173.6,3173.5,0.2511]
[1763352446789,3.2078,3173.6,3173.5,0.2511]
[1763352455684,3.2078,3173.6,3173.5,0.6712]
[1763352457585,3.2078,3174.1,3174.0,0.6712]
[1763352457789,3.2125288,3174.5,3174.4,0.4201]
[1763352458001,1.69194933,3175.4,3175.0,0.2511]
[1763352458002,3.2078,3175.4,3175.0,0.2511]
[1763352458182,3.2078,3175.4,3175.3,0.4201]
[1763352458486,3.2078,3175.8,3175.5,0.2511]
[1763352458789,0.73434607,3175.7,3175.5,0.25449136]
[1763352458993,0.73434607,3175.7,3175.5,0.00339136]
[1763352459189,0.73434607,3175.7,3175.5,0.25449136]
[1763352461791,3.21079823,3175.8,3175.5,0.25449136]
[1763352461982,3.21079823,3175.8,3175.3,0.0047288]
[1763352462185,3.2078,3175.4,3174.5,0.2511]
[1763352462489,3.2078,3174.9,3174.5,0.2511]
[1763352463294,3.2078,3174.9,3174.5,0.25379561]
[1763352466296,0.51069,3174.7,3174.5,0.00269561]
[1763352466491,0.51073,3174.5,3174.0,0.2511]
[1763352466693,3.71853,3174.5,3174.0,0.2511]
[1763352467900,3.71853,3174.5,3174.0,0.25332206]
[1763352468287,0.73368455,3174.4,3174.0,0.25332206]
[1763352469100,0.51076,3174.3,3174.0,0.25332206]
[1763352469690,3.2078,3174.5,3174.0,0.25332206]
[1763352469991,3.2078,3174.5,3174.3,0.4201]
[1763352470194,0.73372872,3174.4,3174.3,0.4201]
[1763352470691,0.73372872,3174.4,3174.0,0.25332206]
[1763352474308,3.94152872,3174.4,3174.0,0.25332206]
[1763352474506,0.73372872,3174.3,3174.2,0.4077]
[1763352475416,0.73372872,3174.3,3174.0,0.25332206]
[1763352476715,0.73372872,3174.3,3164.6,15.76261781]
[1763352476716,0.51079,3174.1,3173.5,0.2478]
[1763352477015,3.2078,3173.8,3173.5,0.2478]
[1763352477209,3.2078,3173.8,3173.7,0.4077]
[1763352477410,3.94281807,3173.8,3173.7,0.4077]
[1763352477607,3.94281807,3173.8,3173.5,0.2478]
[1763352477807,3.2078,3173.8,3173.5,0.25061736]
[1763352478315,3.2078,3173.8,3173.7,0.4077]
[1763352478509,0.0047288,3174.1,3174.0,0.6555]
[1763352478715,0.73979493,3174.1,3174.0,0.6555]
[1763352479617,0.73979493,3174.1,3174.0,0.2478]
[1763352480914,1.25058493,3174.1,3173.5,0.25061736]
[1763352481115,3.2078,3173.8,3173.5,0.25061736]
[1763352481320,3.2078,3173.8,3173.5,0.00281736]
[1763352481321,0.73508773,3173.7,3173.5,0.00281736]
[1763352482221,0.73508773,3173.7,3172.8,3.2078]
[1763352482418,0.51088,3173.6,3172.8,3.2078]
[1763352482620,3.71864,3173.8,3173.5,0.2478]
[1763352482821,0.73487258,3173.7,3173.5,0.2478]
[1763352483215,1.24573258,3173.7,3173.5,0.25179783]
[1763352483415,0.73487258,3173.6,3173.5,0.25179783]
[1763352483922,0.73487258,3173.6,3173.5,0.00399783]
[1763352484518,0.73487258,3173.6,3173.5,0.25179783]
[1763352484722,0.73487258,3173.6,3172.8,3.2078]
[1763352485023,3.2078,3173.2,3172.5,0.51430432]
[1763352485723,3.21165909,3173.2,3173.0,0.25419059]
[1763352486623,0.00385909,3173.2,3173.1,0.4077]
[1763352487027,0.73415515,3173.9,3173.8,0.4077]
[1763352487520,0.73415515,3173.9,3173.5,0.2478]
[1763352488019,0.73656801,3173.9,3173.5,0.2478]
[1763352488525,0.73656801,3173.9,3173.8,0.4077]
[1763352490820,0.00241286,3173.9,3173.8,0.4077]
[1763352493422,0.51084,3173.8,3173.5,0.2478]
[1763352493615,0.73523896,3173.7,3173.5,0.2478]
[1763352493815,3.2078,3173.6,3173.5,0.2478]
[1763352494020,3.94303896,3173.6,3173.5,0.2478]
[1763352495532,3.94303896,3173.6,3173.5,0.6555]
[1763352496829,3.94303896,3173.6,3173.5,0.2478]
[1763352498431,0.73523896,3173.6,3173.5,0.6208]
[1763352498832,0.73765182,3173.9,3173.5,0.6208]
[1763352499136,0.73523896,3173.8,3173.7,0.373]
[1763352499329,0.73523896,3173.8,3173.5,0.2478]
[1763352499535,0.00241286,3173.9,3173.5,0.2478]
[1763352499536,0.73523896,3173.7,3173.6,0.3785]
[1763352499733,0.00241286,3173.9,3173.8,0.3785]
[1763352499929,0.7387462,3173.9,3173.8,0.3785]
[1763352509042,0.7387462,3173.9,3173.5,0.2478]
[1763352513646,3.9465462,3173.9,3173.5,0.2478]
[1763352513847,0.73633334,3173.8,3173.5,0.2478]
[1763352515650,0.73633334,3173.8,3173.7,0.3785]
[1763352516151,0.73633334,3173.8,3173.5,0.2478]
[1763352517350,0.73633334,3173.7,3173.5,0.2478]
[1763352517649,0.73633334,3173.6,3173.5,0.2478]
[1763352523151,0.73633334,3173.6,3173.0,0.25419059]
[1763352523152,1.86429956,3173.6,3173.0,0.25419059]
[1763352523349,3.21021286,3173.9,3173.0,0.25419059]
[1763352523350,0.51093,3173.2,3173.0,0.25419059]
[1763352523554,1.86429956,3173.1,3173.0,0.25419059]
[1763352524456,1.86429956,3173.1,3172.7,3.2078]
[1763352524655,0.73633334,3173.0,3172.7,3.2078]
[1763352524950,0.73633334,3172.9,3172.7,3.2078]
[1763352525153,0.73633334,3172.8,3172.5,0.2511]
[1763352525657,0.73633334,3172.8,3172.5,0.25474069]
[1763352532065,0.51104,3172.6,3172.0,0.2478]
[1763352532259,5.59823466,3172.5,3172.0,0.2478]
[1763352532455,1.24739334,3172.4,3172.0,0.2478]
[1763352532759,3.2078,3172.1,3172.0,0.2478]
[1763352533168,3.2078,3172.1,3172.0,0.25081731]
[1763352534065,3.2078,3172.1,3172.0,0.60431731]
[1763352535367,0.0047288,3172.4,3172.0,0.60431731]
[1763352535368,0.0047288,3172.4,3172.3,0.3535]
[1763352536265,2.88e-05,3172.4,3172.3,0.3535]
[1763352538866,2.88e-05,3172.4,3172.3,3.5055]
[1763352539363,3.2078,3173.1,3173.0,0.5719]
[1763352539559,3.9430648,3173.1,3173.0,0.5719]
[1763352541263,0.0047288,3173.4,3173.3,0.3535]
[1763352541464,0.73961508,3173.4,3173.3,3.5613]
[1763352541661,0.0047288,3173.4,3173.3,3.5613]
[1763352543371,0.0047288,3173.4,3173.3,0.3535]
[1763352544483,0.0047288,3173.4,3173.0,0.2184]
[1763352545374,0.73967516,3173.4,3173.0,0.2184]
[1763352546078,0.73967516,3173.4,3173.3,0.3535]
[1763352546376,0.73967516,3173.4,3173.0,3.4262]
[1763352548176,0.73967516,3173.4,3173.3,0.3535]
[1763352548777,0.0047288,3173.4,3173.3,0.3535]
[1763352548977,2.88e-05,3173.4,3173.3,0.3535]
[1763352551185,0.73727705,3173.9,3173.8,0.3535]
[1763352551385,3.2078,3174.4,3174.3,0.3535]
[1763352552283,3.5612,3174.4,3174.0,0.2231288]
[1763352552589,3.56518433,3174.4,3174.0,0.22655833]
[1763352552790,3.56518433,3174.4,3174.3,0.3535]
[1763352557786,0.3754,3174.1,3174.0,0.58085833]
[1763352558284,3.21178433,3174.4,3174.0,0.58085833]
[1763352558794,3.58718433,3174.4,3174.3,0.3543]
[1763352559784,3.21178433,3174.4,3174.3,0.3543]
[1763352561193,0.00398433,3174.4,3174.3,0.3543]
[1763352563895,0.37788433,3174.4,3174.3,0.3543]
[1763352564796,1.19393421,3174.4,3174.3,0.3543]
[1763352566492,0.3739,3173.8,3173.7,3.2078]
[1763352566694,0.3739,3173.8,3173.7,3.5544]
[1763352566695,0.81604988,3173.8,3173.7,3.5544]
[1763352567003,0.3739,3173.9,3173.8,0.3466]
[1763352567700,0.3739,3173.9,3173.8,0.34938734]
[1763352568393,0.72982649,3174.1,3173.8,0.34938734]
[1763352568596,3.58568433,3174.4,3174.3,0.3466]
[1763352568800,4.31640197,3174.4,3174.3,0.3466]
[1763352569099,4.31640197,3174.4,3174.0,0.2222]
[1763352569297,0.73071764,3174.3,3174.0,0.2222]
[1763352569496,1.10461764,3174.2,3174.1,0.3466]
[1763352569894,0.37788433,3174.4,3174.3,0.3466]
[1763352570300,0.3739,3174.1,3174.0,0.5688]
[1763352571501,0.3739,3173.9,3173.8,0.00278734]
[1763352571902,1.10472838,3173.9,3173.8,0.00278734]
[1763352572097,0.3739,3173.9,3173.8,0.00278734]
[1763352572697,0.3739,3173.9,3173.8,0.34938734]
[1763352575306,1.10472838,3173.9,3173.8,0.34938734]
[1763352575905,0.3739,3173.9,3173.8,0.34938734]
[1763352579312,0.73239939,3174.2,3173.8,0.34938734]
[1763352579512,1.10629939,3174.1,3174.0,0.5688]
[1763352579706,0.3739,3174.1,3174.0,0.5688]
[1763352579904,1.10629939,3174.1,3174.0,0.5688]
[1763352580411,0.3739,3173.9,3173.8,0.34938734]
[1763352580613,0.3739,3173.9,3173.8,0.00278734]
[1763352581112,1.10629939,3173.9,3173.8,0.00278734]
[1763352581315,2.23426561,3173.9,3173.8,0.00278734]
[1763352581608,6.00604872,3173.9,3173.8,0.00278734]
[1763352581807,0.3739,3173.6,3173.5,0.0047288]
[1763352582008,0.3739,3173.1,3173.0,0.565]
[1763352582407,0.73239939,3173.6,3173.0,0.565]
[1763352582905,0.73239939,3173.6,3173.0,0.56787473]
[1763352583514,0.73239939,3173.5,3173.0,0.56787473]
[1763352583706,0.73239939,3173.4,3173.0,0.56787473]
[1763352583905,1.10629939,3173.3,3173.2,0.3466]
[1763352584109,0.3739,3173.3,3173.2,0.3466]
[1763352584412,0.3739,3173.1,3173.0,0.22127473]
[1763352584607,0.3739,3173.1,3173.0,0.00287473]
[1763352585605,1.61723939,3173.1,3173.0,0.00287473]
[1763352585805,4.82503939,3173.1,3173.0,0.00287473]
[1763352586419,4.82378613,3173.1,3173.0,0.00287473]
[1763352586813,5.57268448,3173.1,3173.0,0.00287473]
[1763352587722,0.3739,3172.6,3172.5,3.2078]
[1763352588116,0.3739,3172.1,3172.0,3.2078]
[1763352588322,1.12279835,3172.1,3172.0,3.2078]
[1763352588721,1.12668279,3172.1,3172.0,3.21047313]
[1763352589623,1.12668279,3172.1,3172.0,3.43877313]
[1763352589823,1.12668279,3172.1,3172.0,3.77357313]
[1763352591415,1.12668279,3172.1,3172.0,3.21047313]
[1763352593124,1.12668279,3172.1,3172.0,3.77357313]
[1763352593725,1.12668279,3172.1,3172.0,3.43877313]
[1763352594324,1.12668279,3172.1,3172.0,3.77357313]
[1763352596031,1.12668279,3172.1,3172.0,3.21047313]
[1763352596323,1.63779279,3172.1,3172.0,0.00267313]
[1763352596713,1.12668279,3172.1,3172.0,0.00267313]
[1763352599022,1.12668279,3172.1,3172.0,0.23097313]
[1763352599324,1.12668279,3172.1,3172.0,0.00267313]
[1763352601326,0.00388444,3172.1,3172.0,0.56577313]
[1763352603020,1.07158279,3172.1,3172.0,0.00267313]
[1763352603221,1.07158279,3172.1,3172.0,0.23097313]
[1763352603428,0.3188,3171.7,3171.6,3.2078]
[1763352603615,1.06769835,3171.7,3171.6,3.2078]
[1763352603819,0.74889835,3171.7,3171.6,3.5426]
[1763352604024,1.06769835,3172.0,3171.9,0.3348]
[1763352604415,0.00388444,3172.1,3172.0,0.5631]
[1763352604623,0.00388444,3172.1,3172.0,0.56539543]
[1763352606325,0.32268444,3172.1,3172.0,0.56539543]
[1763352606727,0.00388444,3172.1,3172.0,0.56539543]
[1763352606928,0.32268444,3172.1,3172.0,0.56539543]
[1763352607129,0.00388444,3172.1,3172.0,0.56539543]
[1763352608533,0.00388444,3172.1,3172.0,3.77319543]
[1763352610224,0.32268444,3172.1,3172.0,3.77319543]
[1763352610426,0.32268444,3172.1,3172.0,3.43839543]
[1763352610628,0.32268444,3172.1,3172.0,3.77319543]
[1763352611932,0.32268444,3172.1,3172.0,0.56539543]
[1763352613633,3.53048444,3172.1,3172.0,0.00229543]
[1763352613830,4.26037611,3172.1,3172.0,0.00229543]
[1763352615136,5.38756157,3172.1,3172.0,0.00229543]
[1763352615632,0.3188,3171.6,3171.3,3.2078]
[1763352615945,1.12947232,3171.7,3171.6,0.3348]
[1763352616127,0.72989167,3171.7,3171.6,0.3348]
[1763352616526,1.85936399,3171.7,3171.6,0.3348]
[1763352616727,1.85936399,3171.7,3171.6,0.33824328]
[1763352616935,0.72989167,3171.7,3171.6,0.33824328]
[1763352617937,1.04869167,3171.7,3171.6,0.33824328]
[1763352620136,1.04869167,3171.7,3171.6,0.00344328]
[1763352620639,1.04869167,3171.7,3171.6,0.30174328]
[1763352621444,1.04869167,3171.7,3171.0,0.4743]
[1763352621445,0.5112,3171.6,3171.0,0.4743]
[1763352621638,1.12932452,3171.4,3171.0,0.4743]
[1763352621938,0.73259163,3171.4,3171.3,0.2983]
[1763352622138,0.3132,3171.4,3171.3,0.2983]
[1763352622344,0.3132,3171.4,3171.3,0.00402925]
[1763352622638,1.04579163,3171.4,3171.3,0.00402925]
[1763352624039,1.04579163,3171.4,3171.3,0.30232925]
[1763352624239,0.73259163,3171.4,3171.3,0.30232925]
[1763352624437,1.12932452,3171.7,3171.5,0.4743]
[1763352624744,3.52488444,3172.1,3172.0,0.4743]
[1763352624947,4.25755883,3172.1,3172.0,0.4743]
[1763352625946,5.38688335,3172.1,3171.5,0.176]
[1763352626136,0.73267439,3172.0,3171.5,0.176]
[1763352626338,1.86199891,3171.9,3171.5,0.176]
[1763352626540,0.73267439,3171.8,3171.5,0.176]
[1763352626742,1.04587439,3171.7,3171.6,0.2983]
[1763352627043,0.3132,3171.6,3171.5,0.176]
[1763352627343,1.04587439,3171.6,3171.5,0.176]
[1763352627543,1.04587439,3171.6,3171.5,0.4743]
[1763352628840,0.73267439,3171.6,3171.5,0.4743]
[1763352632546,1.04587439,3171.6,3171.5,0.4743]
[1763352632736,1.04587439,3171.6,3171.5,0.176]
[1763352633253,0.73267439,3171.6,3171.5,0.4743]
[1763352633444,4.90567122,3172.1,3172.0,0.4743]
[1763352633445,3.21168444,3172.1,3172.0,0.4743]
[1763352633746,3.94422042,3172.1,3171.5,0.4743]
[1763352633947,0.73253598,3172.0,3171.9,0.2983]
[1763352635449,0.00388444,3172.1,3172.0,0.4743]
[1763352639152,0.31708444,3172.1,3172.0,0.4743]
[1763352640355,0.3132,3171.8,3171.7,3.2078]
[1763352640860,0.3132,3171.6,3171.5,0.4743]
[1763352641559,0.73280854,3171.8,3171.7,0.2983]
[1763352641560,1.04600854,3171.8,3171.7,0.2983]
[1763352642559,0.3132,3171.6,3171.5,0.4743]
[1763352642760,1.04600854,3171.8,3171.5,0.176]
[1763352643054,0.3132,3171.6,3171.5,0.176]
[1763352643252,0.3132,3171.6,3171.3,0.00402925]
[1763352643253,0.3132,3171.4,3171.3,0.00402925]
[1763352643654,0.3132,3171.4,3171.3,0.30232925]
[1763352645458,0.3132,3171.4,3171.3,0.00402925]
[1763352645661,0.73280854,3171.5,3171.3,0.30232925]
[1763352645854,0.73280854,3171.5,3171.4,0.2983]
[1763352646060,3.521,3171.7,3171.6,0.2983]
[1763352646259,4.25361717,3171.7,3171.6,0.2983]
[1763352646856,0.3132,3171.6,3171.5,0.176]
[1763352647063,1.04581717,3171.6,3171.5,0.176]
[1763352647361,0.73261717,3171.6,3171.5,0.4743]
[1763352647966,1.44252452,3172.0,3171.9,0.2983]
[1763352648172,2.17532298,3172.0,3171.9,0.2983]
[1763352648867,2.17532298,3172.0,3171.5,0.176]
[1763352649070,0.285,3171.6,3171.5,0.4479]
[1763352650660,1.42907035,3171.8,3171.7,0.2719]
[1763352650865,2.16186881,3171.8,3171.7,0.2719]
[1763352651164,0.285,3171.6,3171.5,0.4479]
[1763352651365,1.01779846,3171.7,3171.6,0.2719]
[1763352651871,0.285,3171.4,3171.3,0.00402925]
[1763352652163,1.12932452,3171.4,3171.0,0.4431]
[1763352652374,1.14407035,3171.5,3171.3,0.2719]
[1763352652375,2.27339487,3171.5,3171.3,0.2719]
[1763352652665,0.7324531,3171.4,3171.3,0.2719]
[1763352653056,1.12932452,3171.5,3171.4,0.2719]
[1763352653362,3.2078,3171.7,3171.6,0.2719]
[1763352653566,3.940413,3171.7,3171.6,0.2719]
[1763352655370,0.285,3171.6,3171.5,0.1712]
[1763352655570,0.732613,3171.7,3171.6,0.2719]
[1763352655968,1.12932452,3172.0,3171.9,0.2719]
[1763352656157,1.86139179,3172.0,3171.9,0.2719]
[1763352656363,2.14639179,3172.0,3171.9,0.2719]
[1763352657469,2.14639179,3172.0,3171.5,0.1712]
[1763352657669,0.285,3171.4,3171.3,0.27503227]
[1763352658669,1.01706727,3171.4,3171.3,0.00313227]
[1763352658869,0.285,3171.4,3171.3,0.27503227]
[1763352659075,1.01706727,3171.6,3171.5,0.4431]
[1763352660475,0.73206727,3171.6,3171.5,0.4431]
[1763352661169,0.285,3171.4,3171.3,0.00313227]
[1763352661574,1.01706727,3171.4,3171.3,0.00313227]
[1763352661776,0.73206727,3171.4,3171.3,0.27503227]
[1763352661982,1.14407035,3171.6,3171.5,0.4431]
[1763352662271,2.16099578,3171.6,3171.5,0.4431]
[1763352662868,0.285,3171.4,3171.3,0.00313227]
[1763352663071,0.79622,3171.4,3171.3,0.00313227]
[1763352663373,1.52814543,3171.4,3171.3,0.00313227]
[1763352664581,0.285,3170.7,3170.6,3.4797]
[1763352664769,1.14879915,3171.0,3170.6,3.4797]
[1763352664965,0.73192543,3170.9,3170.6,3.4797]
[1763352665372,0.73192543,3170.9,3170.6,3.48257648]
[1763352665578,0.74762543,3170.9,3170.8,0.2719]
[1763352665778,0.73192543,3170.9,3170.8,0.2719]
[1763352666581,0.74762543,3170.9,3170.8,0.2719]
[1763352667182,0.0157,3170.7,3170.6,0.00287648]
[1763352667386,0.73192543,3170.9,3170.6,0.27477648]
[1763352667593,0.0157,3170.7,3170.6,0.00287648]
[1763352668592,0.74762543,3170.7,3170.6,0.00287648]
[1763352668995,0.0157,3170.6,3170.5,0.1712]
[1763352669297,1.15977035,3170.6,3170.5,0.4431]
[1763352669499,1.89169578,3170.6,3170.5,0.4431]
[1763352669697,1.89169578,3170.6,3170.5,0.1712]
[1763352670191,1.89169578,3170.6,3170.5,0.17425634]
[1763352670892,1.56581943,3170.6,3170.5,0.17425634]
[1763352671696,1.56581943,3170.6,3170.5,0.44615634]
[1763352672194,0.74762543,3170.6,3170.5,0.44615634]
[1763352673491,0.74762543,3170.6,3170.5,0.17425634]
[1763352674397,0.74762543,3170.6,3170.5,0.1712]
[1763352674398,1.25897543,3170.6,3170.5,0.1712]
[1763352674590,1.25897543,3170.6,3169.7,3.2078]
[1763352674792,1.14559261,3170.4,3170.0,0.4479]
[1763352674988,0.73192543,3170.3,3170.0,0.4479]
[1763352675193,1.14559261,3170.4,3170.0,0.4479]
[1763352675493,1.14559261,3170.4,3170.0,0.45043709]
[1763352676299,1.16129261,3170.4,3170.3,0.2719]
[1763352676599,1.89159893,3170.4,3170.3,0.2719]
[1763352677896,3.2078,3170.8,3170.7,0.2554]
[1763352678100,3.93799804,3170.8,3170.7,0.2554]
[1763352679004,0.73019804,3170.8,3170.7,0.2554]
[1763352679198,0.0047288,3171.0,3170.9,0.2554]
[1763352680496,0.73519801,3171.0,3170.9,0.2554]
[1763352680702,0.0047288,3171.0,3170.9,0.2554]
[1763352681506,0.0047288,3171.0,3170.5,3.3598]
[1763352681803,0.73519801,3171.0,3170.5,3.3598]
[1763352684006,0.73519801,3171.0,3170.9,0.2475]
[1763352684514,0.73519801,3171.0,3170.5,3.3598]
[1763352685206,0.73519801,3171.0,3170.0,1.65653709]
[1763352685207,0.0954,3170.2,3170.1,3.4553]
[1763352685415,1.24099261,3170.6,3170.5,0.1505]
[1763352685604,1.96987527,3170.6,3170.5,0.1505]
[1763352687813,1.96987527,3170.6,3170.5,0.398]
[1763352688212,1.96987527,3170.6,3170.5,0.1505]
[1763352689919,1.96987527,3170.6,3170.5,0.398]
[1763352690214,0.82428266,3170.6,3170.5,0.398]
[1763352690605,0.0954,3170.6,3170.5,0.398]
[1763352691211,0.0954,3170.2,3170.1,3.4553]
[1763352691420,0.82428266,3170.5,3170.4,0.2475]
[1763352693614,0.72888266,3170.5,3170.4,0.2475]
[1763352693915,0.0954,3170.7,3170.6,0.2475]
[1763352694114,0.82540222,3170.7,3170.6,0.2475]
[1763352694619,1.22472452,3170.9,3170.8,0.2475]
[1763352694819,1.9548031,3170.9,3170.8,0.2475]
[1763352695214,0.82547858,3170.9,3170.5,0.1505]
[1763352695515,1.85996828,3170.8,3170.5,0.1505]
[1763352695713,0.82547858,3170.7,3170.6,0.2475]
[1763352695914,0.0954,3170.7,3170.6,0.2475]
[1763352696310,0.0954,3170.2,3170.1,3.2078]
[1763352696514,1.87567119,3170.6,3170.5,0.1505]
[1763352698824,0.73007858,3170.6,3170.5,0.1505]
[1763352699627,0.73007858,3170.6,3170.5,0.398]
[1763352700829,1.4800178,3170.6,3170.5,0.398]
[1763352701626,2.6099075,3170.6,3170.0,0.17853709]
[1763352701821,1.1298897,3170.6,3170.5,0.398]
[1763352702018,0.0047288,3171.0,3170.9,0.2475]
[1763352702218,0.97063564,3171.6,3171.5,0.2475]
[1763352702429,3.2078,3171.8,3171.7,0.2475]
[1763352702623,3.93805358,3171.8,3171.7,0.2475]
[1763352702926,3.93805358,3171.8,3171.5,0.1505]
[1763352702927,4.17805358,3171.8,3171.3,3.2078]
[1763352703227,0.97025358,3171.7,3171.6,0.2475]
[1763352703726,0.24,3171.3,3171.2,0.0047288]
[1763352703926,3.4478,3171.3,3171.2,0.0047288]
[1763352704227,4.17805358,3171.3,3171.2,0.0047288]
[1763352704722,4.17271185,3171.3,3171.2,0.0047288]
[1763352705231,0.96491185,3171.3,3171.2,0.2522288]
[1763352705626,0.96488145,3171.6,3171.5,0.2475]
[1763352705827,0.964931,3171.6,3171.5,0.2475]
[1763352707325,0.0047288,3171.9,3171.5,0.398]
[1763352707632,0.0047288,3171.9,3171.8,3.4553]
[1763352707834,0.00388444,3172.1,3172.0,0.398]
[1763352708127,0.72476938,3172.6,3172.5,0.2906]
[1763352708433,3.3572,3173.0,3172.8,0.2475]
[1763352708434,0.24,3172.9,3172.8,0.2475]
[1763352708636,0.96383526,3172.9,3172.8,0.2475]
[1763352709131,0.96707654,3172.9,3172.8,0.25059657]
[1763352709432,0.24324128,3172.9,3172.8,0.25059657]
[1763352710834,0.24324128,3172.9,3172.8,0.00309657]
[1763352711026,0.96540293,3172.9,3172.8,0.00309657]
[1763352711631,0.2523,3172.4,3172.3,3.2078]
[1763352712229,0.2523,3172.0,3171.9,0.2509]
[1763352712530,0.1538,3172.5,3171.9,0.2533756]
[1763352712731,0.87604116,3172.5,3171.9,0.2533756]
[1763352712931,1.38709116,3172.5,3171.9,0.2533756]
[1763352713134,0.66485,3172.5,3171.9,0.2533756]
[1763352713737,0.51107,3172.4,3171.9,0.2533756]
[1763352714038,0.1538,3172.5,3171.9,0.2533756]
[1763352714337,0.87626188,3172.5,3171.9,0.2533756]
[1763352715534,0.87626188,3172.5,3172.1,3.2078]
[1763352715733,0.2523,3172.5,3172.4,0.2509]
[1763352715947,3.4601,3172.6,3172.1,3.2078]
[1763352716138,0.1538,3172.5,3172.1,3.2078]
[1763352716329,0.4061,3172.5,3172.4,0.2509]
[1763352716531,0.2523,3172.5,3172.4,0.2509]
[1763352717637,1.23624248,3172.9,3172.4,0.2509]
[1763352717834,0.511,3172.8,3172.4,0.2509]
[1763352718039,0.4061,3172.5,3172.4,0.2509]
[1763352718229,0.2523,3172.2,3172.1,3.4587]
[1763352719245,0.1538,3172.5,3172.1,3.4587]
[1763352720431,0.2523,3172.2,3172.1,3.4587]
[1763352720637,0.4061,3172.0,3171.9,0.0024756]
[1763352721038,0.4061,3172.0,3171.9,0.2533756]
[1763352721743,0.1538,3172.5,3171.9,0.2533756]
[1763352721934,3.2078,3172.6,3172.5,0.2509]
[1763352722136,0.5156688,3173.2,3172.5,0.2509]
[1763352722137,0.25554128,3172.9,3172.8,0.2509]
[1763352722332,0.00324128,3172.9,3172.8,0.2509]
[1763352723446,0.25554128,3172.9,3172.6,3.2078]
[1763352723837,0.2523,3172.7,3172.6,3.2078]
[1763352726743,0.72530355,3172.9,3172.6,3.4587]
[1763352727945,0.2523,3172.7,3172.6,3.4587]
[1763352728243,0.72530355,3172.9,3172.6,3.4587]
[1763352728741,0.72530355,3172.9,3172.6,3.2078]
[1763352728742,0.2523,3172.7,3172.6,3.2078]
[1763352728951,0.72530355,3172.9,3172.1,3.4587]
[1763352729136,1.23628355,3172.9,3172.1,3.4587]
[1763352729339,0.97436227,3172.8,3172.7,0.2509]
[1763352729739,0.2523,3172.8,3172.7,0.2509]
[1763352730843,0.2523,3172.8,3172.1,3.2078]
[1763352731153,0.72206227,3172.8,3172.1,3.2078]
[1763352731333,0.72206227,3172.7,3172.1,3.2078]
[1763352731538,0.72206227,3172.6,3172.1,3.2078]
[1763352731738,0.72206227,3172.5,3172.4,0.2509]
[1763352731938,0.72206227,3172.8,3172.4,0.2509]